bitfinex/quotes_BTCUSD_20260311
["timestamp","ask_amount","ask_price","bid_price","bid_amount"]
[1773253006486,0.07061847,70803.0,70779.0,0.07078371]
[1773253007672,0.00144,70802.0,70779.0,0.07078371]
[1773253008306,0.00144,70801.0,70779.0,0.07078371]
[1773253008506,0.00144,70803.0,70779.0,0.07078371]
[1773253008975,0.00144,70803.0,70779.0,0.07178371]
[1773253009905,0.00144,70803.0,70779.0,0.07078371]
[1773253010100,0.00144,70803.0,70779.0,0.07178371]
[1773253010513,0.07061947,70802.0,70779.0,0.07078371]
[1773253011362,0.07061947,70802.0,70779.0,0.00014129]
[1773253011875,0.07061947,70802.0,70779.0,0.00114129]
[1773253012515,0.07061947,70802.0,70779.0,0.00214129]
[1773253012729,0.07061947,70802.0,70779.0,0.00114129]
[1773253013494,0.12581073,70800.0,70778.0,1e-08]
[1773253013662,0.07061947,70802.0,70779.0,0.0002]
[1773253013663,0.0002166,70801.0,70779.0,0.0002]
[1773253014264,0.00144,70800.0,70779.0,0.0002]
[1773253014470,0.00144,70799.0,70780.0,0.07064142]
[1773253014669,0.00144,70799.0,70779.0,0.07084142]
[1773253014670,0.00144,70799.0,70779.0,0.07084185]
[1773253015296,0.0017002,70799.0,70779.0,0.07084185]
[1773253016423,0.0027002,70799.0,70779.0,0.07084185]
[1773253016640,0.07062346,70798.0,70779.0,0.07084185]
[1773253017124,0.07088366,70798.0,70779.0,0.07084185]
[1773253017437,0.07088366,70798.0,70778.0,0.07064142]
[1773253017728,0.07088366,70798.0,70771.0,0.07084975]
[1773253019246,0.07188366,70798.0,70771.0,0.07084975]
[1773253019532,0.07088366,70798.0,70771.0,0.07084975]
[1773253019715,0.07188366,70798.0,70771.0,0.07084975]
[1773253020270,0.07062446,70797.0,70771.0,0.07084975]
[1773253020451,0.07206446,70797.0,70771.0,0.07084975]
[1773253021018,0.00144,70796.0,70771.0,0.0002]
[1773253021216,0.07062645,70795.0,70771.0,0.07084998]
[1773253021616,0.07062645,70795.0,70771.0,0.0002]
[1773253022022,0.07062645,70795.0,70765.0,0.17609765]
[1773253022365,0.00144,70794.0,70771.0,0.001]
[1773253022559,0.00144,70794.0,70765.0,0.17609765]
[1773253022775,0.00144,70794.0,70771.0,0.001]
[1773253022945,0.00144,70793.0,70771.0,0.001]
[1773253023115,0.07062944,70792.0,70765.0,0.17609765]
[1773253023320,0.07062944,70792.0,70765.0,0.10544127]
[1773253023720,0.07062944,70792.0,70765.0,0.17609757]
[1773253023970,0.07062944,70792.0,70765.0,0.10544127]
[1773253024191,0.07062944,70792.0,70756.0,0.0708648]
[1773253024192,0.12581073,70780.0,70749.0,0.0002]
[1773253024321,0.00144,70779.0,70751.0,0.0708701]
[1773253024517,0.00144,70779.0,70751.0,0.0002]
[1773253024869,0.12581073,70770.0,70751.0,0.0002]
[1773253025068,0.19475857,70786.0,70751.0,0.0002]
[1773253025069,0.12581073,70780.0,70751.0,0.0002]
[1773253025260,0.07208242,70779.0,70751.0,0.0002]
[1773253025422,0.07208242,70779.0,70751.0,0.00031146]
[1773253025623,0.21177974,70779.0,70751.0,0.00031146]
[1773253026282,0.21077974,70779.0,70751.0,0.00031146]
[1773253027014,0.20933974,70779.0,70751.0,0.00031146]
[1773253027175,0.07064441,70777.0,70751.0,0.00031146]
[1773253027516,0.07063044,70791.0,70752.0,0.07066938]
[1773253027659,0.001,70770.0,70752.0,0.07066938]
[1773253028108,0.00144,70773.0,70752.0,0.07066938]
[1773253028258,0.001,70777.0,70752.0,0.07066938]
[1773253028459,0.002,70777.0,70752.0,0.07066938]
[1773253028663,0.001,70777.0,70752.0,0.07066938]
[1773253028863,0.0014,70785.0,70752.0,0.07166938]
[1773253029115,0.20940057,70791.0,70752.0,0.07166938]
[1773253029325,0.07063044,70791.0,70755.0,0.00014133]
[1773253029551,0.07063044,70791.0,70756.0,0.00144]
[1773253030036,0.12581073,70790.0,70756.0,0.00144]
[1773253030236,0.07063044,70791.0,70756.0,0.00144]
[1773253030847,0.12581073,70780.0,70751.0,1e-08]
[1773253030989,0.0014,70779.0,70751.0,1e-08]
[1773253031192,0.0014,70779.0,70752.0,0.002]
[1773253031416,0.07064342,70778.0,70752.0,0.002]
[1773253032457,0.07064342,70778.0,70751.0,1e-08]
[1773253032652,0.07164342,70778.0,70751.0,1e-08]
[1773253033843,0.00144,70777.0,70751.0,1e-08]
[1773253034652,0.07064342,70778.0,70751.0,1e-08]
[1773253035016,0.00144,70777.0,70751.0,1e-08]
[1773253035500,0.07064541,70776.0,70751.0,1e-08]
[1773253036098,0.12581073,70770.0,70744.0,1e-08]
[1773253036273,0.12581073,70760.0,70744.0,0.00011149]
[1773253036480,0.12581073,70760.0,70723.0,0.07069835]
[1773253036481,0.00144,70759.0,70723.0,0.07069835]
[1773253036684,0.12581073,70750.0,70727.0,0.00064993]
[1773253036866,0.00144,70749.0,70727.0,0.00064993]
[1773253037064,0.00144,70748.0,70727.0,0.00064993]
[1773253037428,0.07067537,70746.0,70727.0,0.00064993]
[1773253037558,0.07067537,70746.0,70727.0,0.07134409]
[1773253038242,0.07065663,70765.0,70727.0,0.07134409]
[1773253038431,0.07209739,70764.0,70727.0,0.07134409]
[1773253038993,0.07209739,70764.0,70727.0,0.09134409]
[1773253039778,0.00144,70763.0,70727.0,0.09134409]
[1773253040750,0.00144,70762.0,70747.0,0.00014135]
[1773253040896,0.00144,70762.0,70727.0,0.09134409]
[1773253041933,0.07066039,70761.0,70727.0,0.09134409]
[1773253042174,0.00144,70760.0,70727.0,0.09134409]
[1773253043226,0.00144,70760.0,70728.0,0.0014]
[1773253043949,0.07066238,70759.0,70729.0,0.07069236]
[1773253045059,0.07066238,70759.0,70729.0,0.07209236]
[1773253045370,0.07066238,70759.0,70729.0,0.07069236]
[1773253045631,0.07066238,70759.0,70727.0,0.02084993]
[1773253045821,0.07066238,70759.0,70727.0,0.09154412]
[1773253046026,0.12581073,70750.0,70718.0,0.07070242]
[1773253046177,0.00144,70749.0,70719.0,0.07090233]
[1773253046348,0.00144,70749.0,70719.0,0.0002]
[1773253047173,0.13372,70748.0,70719.0,0.0002]
[1773253048015,0.07067437,70747.0,70719.0,0.0202]
[1773253048466,0.20910972,70747.0,70719.0,0.0202]
[1773253049032,0.00144,70746.0,70719.0,0.0202]
[1773253050175,0.07067637,70745.0,70719.0,0.0202]
[1773253052318,0.07167637,70745.0,70719.0,0.0202]
[1773253052531,0.12581073,70740.0,70712.0,0.0004782]
[1773253052848,0.12581073,70740.0,70704.0,0.0002]
[1773253052849,0.12581073,70730.0,70704.0,0.00164]
[1773253053065,0.12581073,70720.0,70704.0,0.0002]
[1773253053322,0.12581073,70720.0,70696.0,0.0002782]
[1773253053323,0.00144,70719.0,70696.0,0.0001364]
[1773253053528,0.12581073,70710.0,70696.0,0.0001364]
[1773253053739,0.00144,70709.0,70696.0,0.0001364]
[1773253054363,0.07071335,70708.0,70680.0,0.07074072]
[1773253054575,0.07071335,70708.0,70680.0,0.07085219]
[1773253056271,0.00144,70709.0,70680.0,0.07085219]
[1773253056477,0.07071276,70709.0,70680.0,0.07085219]
[1773253056627,0.00144,70708.0,70680.0,0.07085219]
[1773253057032,0.07070343,70718.0,70680.0,0.07085219]
[1773253057241,0.00144,70717.0,70680.0,0.07085219]
[1773253058377,0.07070535,70716.0,70682.0,0.07073936]
[1773253059029,0.07070535,70716.0,70703.0,0.00014144]
[1773253059600,0.00144,70715.0,70703.0,0.00014144]
[1773253060008,0.00144,70714.0,70703.0,0.00014144]
[1773253060180,0.00144,70714.0,70703.0,0.00025291]
[1773253060803,0.07069436,70727.0,70703.0,0.00025291]
[1773253061024,0.00144,70726.0,70703.0,0.00025291]
[1773253061208,0.001,70714.0,70703.0,0.00025291]
[1773253061407,0.00144,70713.0,70703.0,0.00025291]
[1773253062942,0.07070935,70712.0,70682.0,0.07073936]
[1773253063214,0.07070935,70712.0,70682.0,0.07085108]
[1773253063631,0.12581073,70710.0,70682.0,0.00011172]
[1773253065010,0.07071235,70709.0,70682.0,0.02011172]
[1773253065174,0.07071235,70709.0,70682.0,0.0908503]
[1773253065377,0.07071235,70709.0,70682.0,0.02011172]
[1773253065627,0.07071235,70709.0,70682.0,0.09085105]
[1773253066426,0.07071235,70709.0,70682.0,0.09105105]
[1773253067394,0.00144,70708.0,70682.0,0.09105105]
[1773253067821,0.00144,70708.0,70682.0,0.09105056]
[1773253068146,0.00144,70708.0,70682.0,0.02031172]
[1773253068713,0.12581073,70700.0,70682.0,0.02031172]
[1773253068923,0.00144,70699.0,70682.0,0.02031172]
[1773253069185,0.00144,70699.0,70680.0,0.0202]
[1773253069314,0.07072335,70698.0,70680.0,0.0202]
[1773253069730,0.07072335,70698.0,70680.0,0.0002]
[1773253070541,0.07072335,70698.0,70696.0,0.00014145]
[1773253070787,0.07072335,70698.0,70680.0,0.0002]
[1773253070999,0.07072335,70698.0,70680.0,0.07094036]
[1773253071252,0.00144,70697.0,70680.0,0.0002]
[1773253071467,0.07072535,70696.0,70680.0,0.0002]
[1773253071847,0.00144,70695.0,70680.0,0.0002]
[1773253072225,0.00144,70695.0,70680.0,0.07094131]
[1773253072813,0.07083466,70699.0,70680.0,0.07094131]
[1773253072814,0.20506535,70717.0,70680.0,0.07094131]
[1773253073013,0.07070859,70713.0,70680.0,0.07105262]
[1773253073773,0.12612258,70710.0,70680.0,0.00031131]
[1773253073987,0.12612258,70700.0,70680.0,0.00031131]
[1773253074196,0.00144,70699.0,70680.0,0.00031131]
[1773253074371,0.00144,70698.0,70680.0,0.00031131]
[1773253074582,0.00144,70697.0,70680.0,0.00031131]
[1773253074972,0.00144,70697.0,70678.0,0.0003202]
[1773253075694,0.07072535,70696.0,70678.0,0.0003202]
[1773253078062,0.07172535,70696.0,70678.0,0.0003202]
[1773253078575,0.07072535,70696.0,70678.0,0.0203202]
[1773253078924,0.07172535,70696.0,70678.0,0.0203202]
[1773253079120,0.21039335,70696.0,70678.0,0.0203202]
[1773253079552,0.07172535,70696.0,70678.0,0.0203202]
[1773253080096,0.07072535,70696.0,70678.0,0.0203202]
[1773253080476,0.00144,70695.0,70678.0,0.0203202]
[1773253080842,0.00144,70694.0,70679.0,0.07074237]
[1773253081041,0.07072535,70697.0,70678.0,0.0205202]
[1773253081042,0.00144,70693.0,70678.0,0.0205202]
[1773253081648,0.07072936,70692.0,70678.0,0.0205202]
[1773253082305,0.07072936,70692.0,70674.0,0.0002]
[1773253082467,0.12612258,70690.0,70672.0,0.0002]
[1773253082660,0.13894475,70691.0,70672.0,0.0002]
[1773253083079,0.07172936,70692.0,70672.0,0.0002]
[1773253083283,0.00144,70691.0,70672.0,0.07094886]
[1773253083698,0.07072936,70695.0,70672.0,0.07094886]
[1773253083699,0.07072335,70699.0,70672.0,0.07094886]
[1773253083899,0.00144,70698.0,70672.0,0.07094886]
[1773253084371,0.00144,70698.0,70672.0,0.09094886]
[1773253085773,0.07072435,70697.0,70672.0,0.09094886]
[1773253088201,0.07072435,70697.0,70672.0,0.0202]
[1773253089204,0.07072435,70697.0,70672.0,0.0212]
[1773253089566,0.00144,70696.0,70672.0,0.0202]
[1773253089968,0.07072635,70695.0,70672.0,0.0202]
[1773253090123,0.00144,70694.0,70672.0,0.09094892]
[1773253090324,0.00144,70694.0,70672.0,0.0202]
[1773253090855,0.15442258,70690.0,70664.0,1e-08]
[1773253091053,0.15442258,70690.0,70640.0,0.0076096]
[1773253091054,0.12612258,70682.0,70651.0,0.07076951]
[1773253091252,0.00144,70681.0,70653.0,0.07076743]
[1773253091455,0.00144,70681.0,70655.0,0.07076638]
[1773253091661,0.00144,70681.0,70652.0,0.07076886]
[1773253091826,0.00144,70681.0,70654.0,0.07076713]
[1773253092032,0.00144,70681.0,70657.0,0.07096436]
[1773253092033,0.07074136,70680.0,70657.0,0.07096436]
[1773253092273,0.07074136,70680.0,70657.0,0.0002]
[1773253093052,0.07074136,70680.0,70658.0,0.07076289]
[1773253093259,0.07074136,70680.0,70661.0,0.0710803]
[1773253093455,0.00144,70679.0,70661.0,0.0710803]
[1773253093987,0.07073489,70687.0,70661.0,0.0710803]
[1773253094133,0.00144,70686.0,70661.0,0.0910803]
[1773253094334,0.07072535,70696.0,70661.0,0.0910803]
[1773253094556,0.00144,70695.0,70661.0,0.0910803]
[1773253095550,0.00144,70695.0,70661.0,0.0920803]
[1773253095748,0.00144,70695.0,70661.0,0.0910803]
[1773253095949,0.07072736,70694.0,70661.0,0.0910803]
[1773253096156,0.00144,70693.0,70661.0,0.0910803]
[1773253096555,0.00144,70692.0,70661.0,0.0910803]
[1773253097467,0.00144,70692.0,70662.0,0.00144]
[1773253097907,0.00144,70691.0,70662.0,0.00144]
[1773253098130,0.00022001,70697.0,70663.0,0.07075838]
[1773253098352,0.00144,70696.0,70663.0,0.07075838]
[1773253098574,0.00022001,70700.0,70670.0,0.12612258]
[1773253098774,0.00022001,70700.0,70670.0,0.12623422]
[1773253098975,0.00022001,70707.0,70671.0,0.485774]
[1773253099103,0.00022001,70707.0,70672.0,0.00144]
[1773253099307,0.00022001,70707.0,70673.0,0.123636]
[1773253100207,0.00022001,70707.0,70674.0,0.07074737]
[1773253101700,0.00022001,70707.0,70674.0,0.07274737]
[1773253102252,0.00022001,70707.0,70674.0,0.07074737]
[1773253102858,0.00022001,70707.0,70674.0,0.07174737]
[1773253103058,0.00022001,70707.0,70680.0,0.12612258]
[1773253103397,0.00022001,70707.0,70681.0,0.00144]
[1773253103604,0.00022001,70707.0,70682.0,0.00144]
[1773253103758,0.00022001,70707.0,70683.0,0.00144]
[1773253104103,0.00022001,70707.0,70684.0,0.00144]
[1773253104283,0.00022001,70707.0,70685.0,0.07217636]
[1773253104515,1e-08,70709.0,70690.0,0.12612258]
[1773253104773,1e-08,70723.0,70691.0,0.28474]
[1773253104954,1e-08,70723.0,70690.0,0.12612258]
[1773253104955,0.07100067,70741.0,70692.0,0.28145368]
[1773253105086,0.0014,70739.0,70692.0,0.00144]
[1773253106182,0.00186922,70739.0,70692.0,0.00144]
[1773253106381,0.07068336,70738.0,70693.0,0.00132]
[1773253106677,0.07068336,70738.0,70691.0,0.07273036]
[1773253106919,0.672995,70737.0,70691.0,0.07273036]
[1773253107116,0.560752,70737.0,70692.0,0.00132]
[1773253107430,0.475253,70737.0,70692.0,0.00132]
[1773253107590,0.475253,70737.0,70693.0,0.00132]
[1773253107989,9.68e-05,70737.0,70693.0,0.00132]
[1773253108196,0.0014,70736.0,70693.0,0.00132]
[1773253108558,0.07068636,70735.0,70694.0,0.07072736]
[1773253108733,0.07208636,70735.0,70694.0,0.07072736]
[1773253109140,0.07218316,70735.0,70694.0,0.07072736]
[1773253109317,0.00141375,70733.0,70694.0,0.07072736]
[1773253110124,0.0014,70732.0,70694.0,0.07072736]
[1773253110497,0.07069036,70731.0,70694.0,0.07072736]
[1773253110699,0.0014,70730.0,70694.0,0.07072736]
[1773253110969,0.07069036,70731.0,70694.0,0.07072736]
[1773253110970,0.0014,70729.0,70694.0,0.07072736]
[1773253111246,0.0014,70729.0,70695.0,0.428358]
[1773253111440,0.0014,70729.0,70695.0,0.324876]
[1773253111668,0.0014,70729.0,70695.0,0.202933]
[1773253112178,0.0014968,70729.0,70694.0,0.07072736]
[1773253112368,0.0014968,70729.0,70696.0,0.00136]
[1773253112774,0.07069336,70728.0,70684.0,0.07073736]
[1773253112907,0.07069336,70728.0,70685.0,0.00136]
[1773253113513,0.07069336,70728.0,70694.0,0.001]
[1773253113709,0.07069336,70728.0,70695.0,0.00136]
[1773253114345,0.0014,70727.0,70695.0,0.00136]
[1773253114546,0.07069336,70728.0,70695.0,0.00136]
[1773253114743,0.07069535,70726.0,70696.0,0.07072535]
[1773253115521,0.00014142,70711.0,70696.0,0.07072535]
[1773253115722,0.07069535,70726.0,70696.0,0.07072535]
[1773253115723,0.0014,70725.0,70696.0,0.07072535]
[1773253116296,0.00031681,70729.0,70696.0,0.07072535]
[1773253116432,0.00031681,70729.0,70700.0,0.12612258]
[1773253116631,0.00037242,70729.0,70701.0,0.832536]
[1773253116905,0.00037242,70729.0,70702.0,0.07071935]
[1773253117037,0.00037242,70729.0,70703.0,0.0014]
[1773253117252,0.00022001,70737.0,70711.0,0.442006]
[1773253117466,0.00033164,70737.0,70712.0,0.0014]
[1773253118148,0.00022001,70741.0,70712.0,0.0014]
[1773253118378,0.00022001,70741.0,70712.0,0.00177242]
[1773253118585,0.00022001,70741.0,70712.0,0.00037242]
[1773253118787,0.00022001,70741.0,70713.0,0.0014]
[1773253118987,0.00022001,70741.0,70714.0,0.07070735]
[1773253119195,0.07068136,70740.0,70714.0,0.07070735]
[1773253119365,0.07090077,70741.0,70714.0,0.07070735]
[1773253119585,0.00022001,70744.0,70720.0,0.12612258]
[1773253119892,0.00022001,70744.0,70714.0,0.07070735]
[1773253119893,0.07089777,70744.0,70721.0,0.0014]
[1773253120943,0.00022001,70749.0,70722.0,0.07069935]
[1773253121649,1e-08,70750.0,70730.0,0.12612258]
[1773253121774,1e-08,70750.0,70731.0,0.0014]
[1773253122179,1e-08,70753.0,70731.0,0.0014]
[1773253122379,0.00022001,70758.0,70731.0,0.0014]
[1773253122380,1e-08,70758.0,70732.0,0.483625]
[1773253122578,0.00022001,70765.0,70740.0,0.12612258]
[1773253122823,0.07087646,70765.0,70741.0,0.0014]
[1773253123022,0.00022001,70765.0,70741.0,0.0014]
[1773253123336,0.07087689,70765.0,70742.0,0.07067937]
[1773253123784,0.07098848,70765.0,70743.0,0.0014]
[1773253124190,0.00022001,70752.0,70743.0,0.0014]
[1773253124561,0.00022001,70752.0,70744.0,0.00144]
[1773253125237,0.00022001,70752.0,70745.0,0.07067637]
[1773253126353,0.00022001,70752.0,70745.0,0.07167637]
[1773253127063,0.07088942,70752.0,70741.0,0.07068036]
[1773253127265,0.09088942,70752.0,70740.0,0.07068044]
[1773253127506,0.02022001,70752.0,70739.0,0.07068036]
[1773253127710,0.09088954,70752.0,70739.0,0.07068036]
[1773253128027,0.09088954,70752.0,70740.0,0.00144]
[1773253128394,0.09088939,70752.0,70740.0,0.00144]
[1773253128772,0.09188939,70752.0,70740.0,0.00144]
[1773253129193,0.02122001,70752.0,70740.0,0.00144]
[1773253129350,0.02022001,70752.0,70741.0,0.07068036]
[1773253129550,0.07088271,70759.0,70741.0,0.07068036]
[1773253129791,0.00022001,70759.0,70741.0,0.07068036]
[1773253129947,0.07088252,70759.0,70741.0,0.07068036]
[1773253130161,0.00022001,70759.0,70741.0,0.07068036]
[1773253130601,0.0708828,70759.0,70741.0,0.07068036]
[1773253130915,0.0708828,70759.0,70741.0,0.07011414]
[1773253131105,0.00022001,70752.0,70741.0,0.07011414]
[1773253132412,0.07089038,70752.0,70737.0,0.07068414]
[1773253132632,0.07089038,70752.0,70738.0,0.00144]
[1773253132997,0.00022001,70752.0,70738.0,0.00144]
[1773253133195,0.00144,70758.0,70738.0,0.00144]
[1773253133396,0.00022001,70759.0,70739.0,0.07068236]
[1773253134405,0.07098843,70765.0,70739.0,0.07068236]
[1773253134994,0.0014,70764.0,70740.0,0.00144]
[1773253135194,0.0014,70764.0,70741.0,0.00144]
[1773253135410,0.0014,70764.0,70742.0,0.07067937]
[1773253135411,0.07065839,70763.0,70742.0,0.07067937]
[1773253135841,0.07065839,70763.0,70743.0,0.00144]
[1773253137027,0.07065839,70763.0,70741.0,0.07067937]
[1773253137227,0.07065839,70763.0,70742.0,0.00144]
[1773253137428,0.07065839,70763.0,70741.0,0.00144]
[1773253137754,0.07065839,70763.0,70740.0,0.07068063]
[1773253137917,0.07065839,70763.0,70741.0,0.00144]
[1773253138124,0.07065839,70763.0,70740.0,0.07068063]
[1773253138937,0.07165839,70763.0,70740.0,0.07068063]
[1773253139241,0.07165839,70763.0,70741.0,0.00144]
[1773253139402,0.07065839,70763.0,70742.0,0.07067937]
[1773253139789,0.12590945,70760.0,70727.0,0.00144]
[1773253140035,0.12590945,70752.0,70726.0,0.00144]
[1773253140237,0.00144,70751.0,70727.0,0.00144]
[1773253140437,0.00144,70750.0,70727.0,0.00144]
[1773253140645,0.00144,70749.0,70727.0,0.00144]
[1773253140848,0.00144,70748.0,70727.0,0.00144]
[1773253141426,0.07067537,70746.0,70728.0,0.07069336]
[1773253144014,0.07211537,70747.0,70728.0,0.07069336]
[1773253144433,0.001,70746.0,70728.0,0.07069336]
[1773253144634,0.07211537,70747.0,70728.0,0.07069336]
[1773253145863,0.07211537,70747.0,70728.0,0.07089336]
[1773253146087,0.07211537,70747.0,70728.0,0.09089336]
[1773253147687,0.07311537,70747.0,70728.0,0.09089336]
[1773253148033,0.07211537,70747.0,70728.0,0.09089336]
[1773253148195,0.07311537,70747.0,70728.0,0.09089336]
[1773253148573,0.07211537,70747.0,70728.0,0.09089336]
[1773253148899,0.07211537,70747.0,70720.0,0.0002]
[1773253149221,0.07211537,70747.0,70710.0,1e-08]
[1773253149222,0.12590945,70730.0,70710.0,1e-08]
[1773253149363,0.00144,70729.0,70702.0,0.00144]
[1773253149563,0.00144,70729.0,70697.0,0.07072336]
[1773253149564,0.00144,70729.0,70697.0,0.00144]
[1773253149763,0.00144,70729.0,70688.0,0.07093252]
[1773253149764,0.12590945,70720.0,70688.0,0.0002]
[1773253150017,0.00144,70719.0,70688.0,0.07093304]
[1773253150255,0.07070335,70718.0,70688.0,0.07093318]
[1773253150381,0.07070335,70718.0,70688.0,0.0713056]
[1773253151614,0.07070335,70718.0,70701.0,0.00014144]
[1773253151812,0.07170335,70718.0,70701.0,0.00014144]
[1773253152213,0.07270335,70718.0,70701.0,0.00014144]
[1773253152539,0.07170335,70718.0,70701.0,0.00014144]
[1773253152941,0.07370335,70718.0,70701.0,0.00014144]
[1773253153305,0.07270335,70718.0,70701.0,0.00014144]
[1773253153500,0.07070335,70718.0,70701.0,0.00014144]
[1773253153740,0.07470335,70718.0,70701.0,0.00014144]
[1773253153943,0.07270335,70718.0,70701.0,0.00014144]
[1773253154357,0.07470335,70718.0,70701.0,0.00014144]
[1773253156031,0.07270335,70718.0,70701.0,0.00014144]
[1773253156417,0.07270335,70718.0,70681.0,0.07093955]
[1773253156418,0.12590945,70711.0,70680.0,1e-08]
[1773253156640,0.12590945,70700.0,70680.0,0.00011164]
[1773253156843,0.00144,70699.0,70680.0,0.00011164]
[1773253157042,0.00144,70698.0,70680.0,0.00011164]
[1773253157360,0.07072535,70696.0,70680.0,0.00011164]
[1773253158493,0.07072535,70697.0,70680.0,0.00011164]
[1773253159177,0.070703,70719.0,70680.0,0.00011164]
[1773253159373,0.07070435,70717.0,70680.0,0.00011164]
[1773253160949,0.07170435,70717.0,70680.0,0.00011164]
[1773253161158,0.00144,70716.0,70680.0,0.00011164]
[1773253161508,0.07070635,70715.0,70680.0,0.00011164]
[1773253161720,0.00144,70714.0,70680.0,0.00011164]
[1773253162865,0.00144,70714.0,70701.0,0.00014144]
[1773253163609,0.07070835,70713.0,70701.0,0.00014144]
[1773253163992,0.00144,70712.0,70701.0,0.00014144]
[1773253165011,0.00144,70711.0,70701.0,0.00014144]
[1773253165538,0.00144,70710.0,70701.0,0.00014144]
[1773253165740,0.07071235,70709.0,70701.0,0.00014144]
[1773253166146,0.00144,70708.0,70701.0,0.00014144]
[1773253167082,0.00144,70709.0,70701.0,0.00014144]
[1773253168372,0.07071335,70708.0,70701.0,0.00014144]
[1773253168831,0.07071335,70708.0,70689.0,0.07073236]
[1773253169125,0.07071335,70708.0,70701.0,0.0002]
[1773253170002,0.00144,70707.0,70701.0,0.0002]
[1773253170226,0.00144,70715.0,70701.0,0.0002]
[1773253170384,0.07070735,70714.0,70701.0,0.0002]
[1773253171180,0.002,70708.0,70701.0,0.0002]
[1773253171380,0.00144,70707.0,70701.0,0.0002]
[1773253172566,0.07071535,70706.0,70701.0,0.0002]
[1773253173337,0.00144,70712.0,70701.0,0.07091948]
[1773253173545,0.00144,70711.0,70701.0,0.07091948]
[1773253173750,0.00144,70710.0,70701.0,0.07091948]
[1773253173947,0.001,70706.0,70701.0,0.07091948]
[1773253174156,0.00144,70709.0,70701.0,0.07091948]
[1773253174554,0.00144,70715.0,70701.0,0.07091948]
[1773253174757,0.00144,70721.0,70701.0,0.07091948]
[1773253175043,0.00144,70721.0,70701.0,0.07235948]
[1773253175445,0.07084063,70723.0,70701.0,0.07235948]
[1773253175662,0.00144,70722.0,70701.0,0.07235948]
[1773253176167,0.00144,70722.0,70701.0,0.07335948]
[1773253176335,0.00144,70722.0,70701.0,0.07235948]
[1773253176539,0.07070035,70721.0,70701.0,0.07235948]
[1773253181242,0.00144,70720.0,70701.0,0.07235948]
[1773253181440,0.00022001,70722.0,70701.0,0.07235948]
[1773253181649,0.00144,70729.0,70701.0,0.07235948]
[1773253182249,0.07091173,70730.0,70701.0,0.07235948]
[1773253182483,0.00144,70729.0,70701.0,0.07235948]
[1773253183101,0.07069336,70728.0,70701.0,0.07435948]
[1773253183311,0.07069336,70728.0,70701.0,0.07235948]
[1773253183486,0.00022001,70730.0,70702.0,0.294708]
[1773253183687,0.07091147,70730.0,70701.0,0.07235948]
[1773253184102,0.00022001,70730.0,70701.0,0.07235948]
[1773253184484,0.00022001,70730.0,70701.0,0.07335948]
[1773253184688,0.0005919,70730.0,70701.0,0.07335948]
[1773253184880,0.0005919,70730.0,70701.0,0.07235948]
[1773253185416,0.07128344,70730.0,70701.0,0.07335948]
[1773253185571,0.0005919,70730.0,70701.0,0.07335948]
[1773253185772,0.07128374,70730.0,70701.0,0.07335948]
[1773253186210,0.07128374,70730.0,70701.0,0.07435948]
[1773253186385,0.0005919,70730.0,70701.0,0.07435948]
[1773253186585,0.07128346,70730.0,70701.0,0.07435948]
[1773253186817,0.0005919,70730.0,70701.0,0.07435948]
[1773253187196,0.0005919,70730.0,70702.0,0.354233]
[1773253187420,0.0005919,70730.0,70702.0,0.17245]
[1773253187625,0.0005919,70730.0,70702.0,0.121025]
[1773253187918,0.07104544,70732.0,70702.0,0.121025]
[1773253188118,0.07104544,70732.0,70702.0,0.00037189]
[1773253188726,0.07104544,70732.0,70702.0,0.00137189]
[1773253189127,0.07104544,70732.0,70702.0,0.00037189]
[1773253189329,0.07104544,70732.0,70703.0,0.07071835]
[1773253191158,0.07104544,70732.0,70703.0,0.07171835]
[1773253191506,0.07104544,70732.0,70703.0,0.07071835]
[1773253192013,0.07104544,70732.0,70703.0,0.07271835]
[1773253192712,0.07104544,70732.0,70703.0,0.07071835]
[1773253192915,0.07104544,70732.0,70703.0,0.07171835]
[1773253193344,0.07104544,70732.0,70703.0,0.07071835]
[1773253193540,0.07104544,70732.0,70703.0,0.07171835]
[1773253193860,0.07104544,70732.0,70703.0,0.07071835]
[1773253194540,0.07104544,70732.0,70704.0,0.00144]
[1773253194740,0.07104544,70732.0,70705.0,0.00144]
[1773253195137,0.07104544,70732.0,70703.0,0.07271835]
[1773253195344,0.12590945,70730.0,70700.0,0.00144]
[1773253195557,0.12590945,70730.0,70694.0,0.07072736]
[1773253195558,0.07069336,70728.0,70698.0,0.00144]
[1773253195763,0.07069336,70728.0,70694.0,0.07072736]
[1773253195967,0.00144,70727.0,70695.0,0.00144]
[1773253196394,0.00144,70726.0,70695.0,0.00144]
[1773253197699,0.07069635,70725.0,70696.0,0.07072535]
[1773253198972,0.00144,70725.0,70696.0,0.07072535]
[1773253199776,0.07069735,70724.0,70696.0,0.07172535]
[1773253200076,0.07069735,70724.0,70696.0,0.07072535]
[1773253200498,0.07213693,70725.0,70696.0,0.07072535]
[1773253201036,0.00037189,70730.0,70696.0,0.07072535]
[1773253201037,0.00037189,70730.0,70700.0,0.12603056]
[1773253201324,0.00037189,70730.0,70701.0,0.130612]
[1773253201325,0.07106336,70730.0,70701.0,0.130612]
[1773253201528,0.00037189,70730.0,70701.0,0.130612]
[1773253201735,0.07106352,70730.0,70701.0,0.130612]
[1773253202132,0.07106352,70730.0,70702.0,0.07215935]
[1773253202913,0.07106352,70730.0,70702.0,0.07071935]
[1773253203119,0.07128353,70730.0,70703.0,0.00144]
[1773253203330,0.07128353,70730.0,70704.0,0.00144]
[1773253203540,0.06828353,70730.0,70704.0,0.00144]
[1773253203777,0.06828353,70730.0,70701.0,0.002]
[1773253203984,0.06828353,70730.0,70702.0,0.00144]
[1773253204202,0.06828353,70730.0,70703.0,0.07071835]
[1773253204390,0.00022001,70730.0,70703.0,0.07071835]
[1773253204596,0.07090483,70737.0,70703.0,0.07071835]
[1773253204597,0.00022001,70737.0,70710.0,0.12603056]
[1773253204891,0.00022001,70737.0,70711.0,0.00144]
[1773253205296,1e-08,70737.0,70711.0,0.00144]
[1773253205502,0.00022001,70745.0,70711.0,0.00144]
[1773253205694,0.07088752,70754.0,70730.0,0.12603056]
[1773253205695,1e-08,70751.0,70730.0,0.12603056]
[1773253205849,1e-08,70751.0,70731.0,0.00144]
[1773253206047,1e-08,70751.0,70732.0,0.07068936]
[1773253207692,0.00022001,70754.0,70732.0,0.07068936]
[1773253208276,0.00022001,70754.0,70732.0,0.07168936]
[1773253208901,0.01124,70757.0,70733.0,0.775339]
[1773253208902,1e-08,70757.0,70733.0,0.775339]
[1773253209070,1e-08,70757.0,70733.0,0.107991]